[Event "4th Chessfestival Gredine 2018"]
[Site "Ortisei"]
[Date "2018.06.17"]
[Round "2.14"]
[White "Borgo, Giulio"]
[Black "Seyb, Dieter"]
[Result "1-0"]
[ECO "A04"]
[WhiteElo "2397"]
[BlackElo "2179"]
[Annotator "NA"]
[PlyCount "109"]
[EventDate "2018.06.16"]
[EventType "swiss"]
[EventCountry "ITA"]
[SourceTitle "playchess.com"]
[Source "ChessBase"]
[SourceQuality "1"]
[TimeControl "40/5400+30:1800+30"]

1. Nf3 {[%emt 0:00:30]} b6 {[%emt 0:01:00]} 2. g3 {[%emt 0:01:30]} Bb7 {[%emt 0:00:00]} 3. Bg2 {[%emt 0:00:30]} e5 {[%emt 0:02:00]} 4. d3 {[%emt 0:11:30]} g6 {[%emt 0:03:30]} 5. c4 {[%emt 0:06:30]} Bg7 {[%emt 0:00:30]} 6. Nc3 {[%emt 0:05:30]} Ne7 {[%emt 0:02:30]} 7. e4 {[%emt 0:03:30]} Nbc6 {[%emt 0:04:30]} 8. Nd5 {[%emt 0:03:30]} Nxd5 {[%emt 0:18:30]} 9. cxd5 {[%emt 0:07:30]} Nd4 {[%emt 0:01:30]} 10. Nxd4 {[%emt 0:02:30]} exd4 {[%emt 0:00:30]} 11. h4 {[%emt 0:15:30]} O-O {[%emt 0:12:30]} 12. h5 {[%emt 0:02:30]} Qe7 $14 {[%emt 0:04:30]} 13. O-O {[%emt 0:10:30]} c6 {[%emt 0:04:30]} 14. Bd2 {[%emt 0:02:30]} Rfe8 {[%emt 0:11:30]} 15. hxg6 {[%emt 0:00:30]} hxg6 {[%emt 0:00:30]} 16. Re1 {[%emt 0:03:30]} a5 {[%emt 0:16:01]} 17. a4 {[%emt 0:03:01]} Qd6 {[%emt 0:02:53]} 18. Qb3 {[%emt 0:00:50]} cxd5 {[%emt 0:00:20]} 19. exd5 {[%emt 0:00:17]} Rxe1+ {[%emt 0:01:32]} 20. Rxe1 {[%emt 0:00:12]} Bf8 {[%emt 0:02:35]} 21. Rc1 {[%emt 0:11:30]} Rc8 {[%emt 0:01:32]} 22. Rxc8 {[%emt 0:02:19]} Bxc8 {[%emt 0:00:30]} 23. Qc4 {[%emt 0:00:30]} Qc5 {[%emt 0:00:00]} 24. Bg5 {[%emt 0:00:00]} Kg7 {[%emt 0:00:00]} 25. Bd8 {[%emt 0:00:00]} Bb7 {[%emt 0:00:00]} 26. g4 {[%emt 0:00:00]} f6 {[%emt 0:00:00]} 27. g5 {[%emt 0:00:00]} fxg5 {[%emt 0:00:00]} 28. Bxg5 {[%emt 0:00:00]} Qxc4 {[%emt 0:00:00]} 29. dxc4 {[%emt 0:00:00]} Kf7 {[%emt 0:00:00]} 30. Bd8 {[%emt 0:00:00]} Bc5 {[%emt 0:00:00]} 31. Bh3 {[%emt 0:00:00]} Ke8 {[%emt 0:00:00]} 32. Bg5 {[%emt 0:00:00]} Be7 {[%emt 0:00:00]} 33. Bf4 {[%emt 0:00:00]} Bc5 {[%emt 0:00:00]} 34. b3 {[%emt 0:00:00]} Ke7 {[%emt 0:00:00]} 35. Bg2 {[%emt 0:00:00]} Bc8 {[%emt 0:00:00]} 36. Bh3 {[%emt 0:00:00]} Kd8 {[%emt 0:00:00]} 37. Kf1 {[%emt 0:00:00]} d6 {[%emt 0:00:00]} 38. Bg5+ {[%emt 0:00:00]} Kc7 {[%emt 0:00:00]} 39. Be6 {[%emt 0:00:00]} Bxe6 {[%emt 0:00:00]} 40. dxe6 {[%emt 0:00:00]} d3 {[%emt 0:25:07]} 41. f3 {[%emt 0:28:40]} Kc8 {[%emt 0:00:30]} 42. Ke1 {[%emt 0:00:30]} Bb4+ {[%emt 0:01:30]} 43. Kd1 {[%emt 0:00:30]} Kc7 {[%emt 0:00:30]} 44. Bf6 {[%emt 0:00:37]} Kc8 {[%emt 0:00:30]} 45. Bd4 {[%emt 0:00:35]} Kd8 {[%emt 0:00:30]} 46. Bxb6+ {[%emt 0:00:33]} Ke7 {[%emt 0:00:30]} 47. Be3 {[%emt 0:00:37]} Kxe6 {[%emt 0:00:30]} 48. Bd2 {[%emt 0:00:51]} Bc5 {[%emt 0:00:30]} 49. Bxa5 {[%emt 0:00:33]} Ke5 {[%emt 0:00:30]} 50. Bc7 {[%emt 0:10:31]} Kd4 {[%emt 0:08:49]} 51. a5 {[%emt 0:00:06]} d5 {[%emt 0:00:04]} 52. cxd5 {[%emt 0:01:55]} Kxd5 {[%emt 0:00:06]} 53. Kd2 {[%emt 0:00:11]} Kc6 {[%emt 0:00:37]} 54. Be5 {[%emt 0:01:40]} Kd5 {[%emt 0:00:40]} 55. Bc3 {[%emt 0:00:18]} 1-0

[Event "4th Chessfestival Gredine 2018"]
[Site "Ortisei"]
[Date "2018.06.17"]
[Round "2.15"]
[White "Hoffmann, Sebastian"]
[Black "Herzog, Adolf"]
[Result "1/2-1/2"]
[ECO "C00"]
[WhiteElo "2105"]
[BlackElo "2344"]
[Annotator "NA"]
[PlyCount "70"]
[EventDate "2018.06.16"]
[EventType "swiss"]
[EventCountry "ITA"]
[SourceTitle "playchess.com"]
[Source "ChessBase"]
[SourceQuality "1"]
[TimeControl "40/5400+30:1800+30"]

1. e4 {[%emt 0:00:30]} e6 {[%emt 0:01:00]} 2. Qe2 {[%emt 0:00:00]} Nf6 {[%emt 0:00:30]} 3. g3 {[%emt 0:00:00] C00: French: Unusual White 2nd moves} (3. e5 Nd5 4. d4 c5 5. Nf3 Nc6 6. dxc5 Bxc5 7. g3 O-O 8. Bg2 f6 9. c4 Nb6 10. O-O fxe5 11. Nxe5 {0-1 (47) Matinian,N (2490)-Volkov,S (2618) Khanty-Mansiysk 2016}) 3... d5 {[%emt 0:06:30]} 4. d3 {[%emt 0:00:30]} Nc6 {[%emt 0:04:30]} 5. Bg2 {[%emt 0:00:30]} dxe4 {[%emt 0:04:30]} 6. dxe4 {[%emt 0:00:30]} e5 {[%emt 0:03:30]} 7. Nf3 {[%emt 0:01:30]} Bg4 {[%emt 0:02:30]} 8. c3 {[%emt 0:01:30]} Bd6 $146 {[%emt 0:01:30]} ({Predecessor:} 8... Bc5 9. b4 Bb6 10. a4 a5 {1-0 (29) Fingerov,D (2374)-Domakov,N Odessa 2003}) 9. O-O {[%emt 0:00:30]} Qd7 {[%emt 0:02:30]} 10. Rd1 {[%emt 0:00:30]} O-O {[%emt 0:01:30]} 11. Na3 {[%emt 0:00:30]} Rad8 {[%emt 0:02:30]} 12. Nc4 {[%emt 0:01:30]} Qe6 {[%emt 0:02:30]} 13. Nxd6 {[%emt 0:08:30]} Rxd6 {[%emt 0:00:30]} 14. Rxd6 {[%emt 0:00:30]} Qxd6 {[%emt 0:02:30]} 15. h3 {[%emt 0:00:30]} Bc8 {[%emt 0:00:00]} 16. Bg5 {[%emt 0:02:30]} Rd8 {[%emt 0:02:00]} 17. Bxf6 {[%emt 0:03:30]} Qxf6 {[%emt 0:01:30]} 18. Rd1 {[%emt 0:00:30]} Rd6 {[%emt 0:03:30]} 19. Rxd6 {[%emt 0:01:30]} Qxd6 {[%emt 0:00:30]} 20. Qd2 {[%emt 0:00:30]} Kf8 {[%emt 0:03:30]} 21. Qxd6+ {[%emt 0:03:30]} cxd6 {[%emt 0:00:30]} 22. Kf1 {[%emt 0:02:30]} Be6 {[%emt 0:01:30]} 23. b3 {[%emt 0:01:30]} Ke7 {[%emt 0:01:30]} 24. Ke2 {[%emt 0:04:30]} f6 {[%emt 0:04:30]} 25. Ke3 {[%emt 0:02:30]} Nb8 {[%emt 0:09:30]} 26. Ne1 {[%emt 0:02:30]} Nd7 {[%emt 0:00:30]} 27. Nd3 {[%emt 0:00:30]} a5 {[%emt 0:03:30]} 28. Nb2 {[%emt 0:05:30]} Nc5 {[%emt 0:02:30]} 29. b4 $11 {[%emt 0:04:30]} Na6 {[%emt 0:04:30]} 30. a3 {[%emt 0:01:30]} Nc7 {[%emt 0:00:30]} 31. Bf1 {[%emt 0:03:30]} d5 {[%emt 0:02:30]} 32. exd5 {[%emt 0:00:30]} Nxd5+ {[%emt 0:00:00]} 33. Kd3 {[%emt 0:01:30]} axb4 {[%emt 0:01:00]} 34. cxb4 {[%emt 0:03:30]} Bf5+ {[%emt 0:04:30]} 35. Kc4 {[%emt 0:00:30]} Kd6 {[%emt 0:01:30]} 1/2-1/2

[Event "4th Chessfestival Gredine 2018"]
[Site "Ortisei"]
[Date "2018.06.17"]
[Round "2.16"]
[White "Cappelletto, Joshuaede"]
[Black "Hecht, Hans-Joachim"]
[Result "0-1"]
[ECO "B07"]
[WhiteElo "2000"]
[BlackElo "2327"]
[Annotator "NA"]
[PlyCount "44"]
[EventDate "2018.06.16"]
[EventType "swiss"]
[EventCountry "ITA"]
[SourceTitle "playchess.com"]
[Source "ChessBase"]
[SourceQuality "1"]
[TimeControl "40/5400+30:1800+30"]

1. e4 {[%emt 0:00:30]} d6 {[%emt 0:01:00]} 2. Nc3 {[%emt 0:03:30]} g6 {[%emt 0:00:00]} 3. d4 {[%emt 0:01:30]} Bg7 {[%emt 0:00:00]} 4. h4 {[%emt 0:02:30]} Nf6 {[%emt 0:00:30]} 5. Be2 {[%emt 0:00:30]} Nc6 {[%emt 0:06:30]} 6. h5 {[%emt 0:05:30]} gxh5 {[%emt 0:09:30]} 7. f3 {[%emt 0:02:30] B07: Pirc-Ufimzew-Verteidigung} (7. f4 e5 8. dxe5 dxe5 9. Qxd8+ Kxd8 10. Nf3 Bg4 11. fxe5 Nd7 12. Nd5 Ndxe5 13. Bf4 Bxf3 14. gxf3 Nd4 {1-0 (47) Jobava,B (2687)-Arutinian,D (2548) Tbilisi 2009}) 7... e5 {[%emt 0:03:30]} 8. d5 {[%emt 0:01:30]} Ne7 {[%emt 0:01:30]} 9. Bg5 $146 {[%emt 0:04:30]} ({Vorgänger:} 9. Be3 Ng6 10. g3 a6 11. Qd2 Qe7 12. O-O-O Bd7 13. Bd3 b5 14. a3 c5 {1-0 (67) Baljon,C-Meulders,R Groningen 1971}) 9... Ng6 {[%emt 0:05:30]} 10. Rxh5 {[%emt 0:06:30]} (10. Bb5+ $14 Ke7 11. a4) 10... h6 {[%emt 0:03:30]} 11. Bb5+ {[%emt 0:01:30]} Kf8 {[%emt 0:00:30]} 12. Bh4 {[%emt 0:03:30]} Nxh4 {[%emt 0:06:30]} 13. Rxh4 {[%emt 0:00:00]} Nxd5 {[%emt 0:00:30]} 14. Nxd5 {[%emt 0:03:00]} (14. Rh2 $142 Nxc3 15. bxc3) 14... Qxh4+ {[%emt 0:00:00]} 15. g3 $2 {[%emt 0:00:30]} (15. Kf1 Qd8 16. Bc4) 15... Qxg3+ {[%emt 0:10:00]} 16. Ke2 {[%emt 0:00:30]} Qg2+ {[%emt 0:00:30]} 17. Ke3 {[%emt 0:01:30]} Qg5+ {[%emt 0:00:30]} 18. Kf2 {[%emt 0:00:30]} Qd8 {[%emt 0:05:30]} 19. Ne3 {[%emt 0:01:30]} c6 {[%emt 0:01:30]} 20. Bc4 {[%emt 0:00:00]} h5 {[%emt 0:00:30]} 21. Ne2 {[%emt 0:00:00]} Bh6 {[%emt 0:01:30]} 22. Qh1 $19 {[%emt 0:01:30]} Qb6 {[%emt 0:00:30]} 0-1

[Event "4th Chessfestival Gredine 2018"]
[Site "Ortisei"]
[Date "2018.06.17"]
[Round "2.18"]
[White "Volkov, Dmitriy"]
[Black "Wecker, Martin"]
[Result "1/2-1/2"]
[ECO "B48"]
[WhiteElo "2334"]
[BlackElo "2143"]
[Annotator "NA"]
[PlyCount "76"]
[EventDate "2018.06.16"]
[EventType "swiss"]
[EventCountry "ITA"]
[SourceTitle "playchess.com"]
[Source "ChessBase"]
[SourceQuality "1"]
[TimeControl "40/5400+30:1800+30"]

1. e4 {[%emt 0:00:30]} c5 {[%emt 0:01:00]} 2. Nf3 {[%emt 0:00:00]} e6 {[%emt 0:00:00]} 3. d4 {[%emt 0:00:00]} cxd4 {[%emt 0:00:00]} 4. Nxd4 {[%emt 0:00:00]} Nc6 {[%emt 0:00:00]} 5. Nc3 {[%emt 0:00:00]} Qc7 {[%emt 0:00:00]} 6. Be3 {[%emt 0:00:00] LiveBook: 7353 Games} a6 {[%emt 0:00:00]} 7. Qf3 {[%emt 0:00:00] B48: Sizilianisch (Paulsen-Variante)} Bd6 {[%emt 0:00:00]} (7... Nf6 8. O-O-O Ne5 9. Qg3 b5 10. a3 Bb7 11. Bxb5 Rc8 12. Ba4 Nxe4 13. Nxe4 Bxe4 14. Bf4 Qc4 15. Bxe5 Qxa4 {1-0 (38) Vachier Lagrave,M (2789)-Anand,V (2776) Karlsruhe/Baden-Baden 2018}) 8. O-O-O {[%emt 0:00:30]} Be5 {[%emt 0:00:30]} 9. Nxc6 {[%emt 0:00:00]} bxc6 {[%emt 0:06:30]} 10. Bd4 {[%emt 0:00:00]} Nf6 {[%emt 0:08:30]} 11. Bxe5 {[%emt 0:00:30]} Qxe5 {[%emt 0:00:30]} 12. Qe3 {[%emt 0:00:00]} O-O {[%emt 0:02:30]} 13. Be2 {[%emt 0:24:00]} d5 {[%emt 0:06:30]} 14. f4 $146 {[%emt 0:10:30]} ({Vorgänger:} 14. Qg3 Qb8 15. Qxb8 Rxb8 {½-½ (48) Schmidt,A (2380)-Kamp,S (2220) ICCF email 2009}) 14... Qc7 {[%emt 0:00:30]} 15. Bf3 {[%emt 0:00:30]} Bb7 {[%emt 0:03:30]} 16. Rhe1 {[%emt 0:05:30]} Rfe8 {[%emt 0:13:30]} 17. e5 {[%emt 0:14:30]} Nd7 {[%emt 0:00:30]} 18. Na4 {[%emt 0:00:30]} c5 {[%emt 0:05:30]} 19. c4 {[%emt 0:07:30]} d4 $17 {[%emt 0:03:30]} ({Much worse is} 19... dxc4 $6 20. Rxd7 Qxd7 21. Nxc5 $14) 20. Qe2 {[%emt 0:00:30]} Rab8 {[%emt 0:13:30]} 21. Bxb7 {[%emt 0:03:30]} Rxb7 {[%emt 0:00:30]} 22. b3 {[%emt 0:00:30]} f6 {[%emt 0:05:30]} 23. Rd3 {[%emt 0:01:30]} fxe5 {[%emt 0:03:30]} 24. fxe5 {[%emt 0:00:00]} Rf8 {[%emt 0:01:30]} 25. Rf3 {[%emt 0:01:00]} Rbb8 {[%emt 0:02:30]} 26. Rxf8+ {[%emt 0:04:30]} Rxf8 {[%emt 0:00:30]} 27. Nb2 {[%emt 0:00:30]} a5 {[%emt 0:06:24]} 28. Kc2 {[%emt 0:03:30]} Rf5 {[%emt 0:00:55]} 29. Nd3 {[%emt 0:00:00]} a4 {[%emt 0:00:39]} 30. Rf1 {[%emt 0:03:00]} axb3+ {[%emt 0:02:12]} 31. axb3 {[%emt 0:00:00]} Rxf1 {[%emt 0:01:33]} 32. Qxf1 {[%emt 0:00:00]} Qa5 {[%emt 0:00:34]} 33. Kb2 {[%emt 0:02:30]} Qc3+ {[%emt 0:00:40]} 34. Ka2 {[%emt 0:00:00]} Qd2+ {[%emt 0:02:11]} 35. Ka3 {[%emt 0:01:00]} Qa5+ {[%emt 0:00:24]} 36. Kb2 {[%emt 0:00:00]} Qc3+ {[%emt 0:00:22]} 37. Ka2 {[%emt 0:00:00]} Qd2+ {[%emt 0:00:05]} 38. Ka3 {[%emt 0:00:00]} Qa5+ {[%emt 0:00:11]} 1/2-1/2

[Event "4th Chessfestival Gredine 2018"]
[Site "Ortisei"]
[Date "2018.06.17"]
[Round "2.19"]
[White "Stelzer, Harald"]
[Black "Hansson, Hakan"]
[Result "0-1"]
[ECO "C11"]
[WhiteElo "2227"]
[BlackElo "1978"]
[Annotator "NA"]
[PlyCount "98"]
[EventDate "2018.06.16"]
[EventType "swiss"]
[EventCountry "ITA"]
[SourceTitle "playchess.com"]
[Source "ChessBase"]
[SourceQuality "1"]
[TimeControl "40/5400+30:1800+30"]

1. e4 {[%emt 0:00:30]} e6 {[%emt 0:02:00]} 2. d4 {[%emt 0:00:00]} d5 {[%emt 0:00:30]} 3. Nc3 {[%emt 0:02:00]} Nf6 {[%emt 0:00:30]} 4. e5 {[%emt 0:00:30]} Nfd7 {[%emt 0:01:30]} 5. f4 {[%emt 0:00:30]} g6 {[%emt 0:07:30] C11: Französische Verteidigung} (5... c5 6. Nf3 Nc6 7. Be3 cxd4 8. Nxd4 Qb6 9. Qd2 Qxb2 10. Rb1 Qa3 11. Bb5 Nxd4 12. Bxd4 a6 13. Bxd7+ Bxd7 14. Rb3 Qe7 15. Rxb7 Rc8 16. f5 exf5 17. O-O Qd8 18. Qf2 Rc4 19. Rfb1 {1-0 (41) Nepomniachtchi,I (2751)-Sutovsky,E (2647) Poikovsky 2018}) 6. Nf3 {[%emt 0:01:30]} a6 {[%emt 0:01:30]} 7. Be3 {[%emt 0:01:30]} c5 {[%emt 0:04:30]} 8. Qd2 {[%emt 0:00:30]} Nc6 {[%emt 0:05:30]} 9. Nd1 {[%emt 0:03:30]} c4 {[%emt 0:04:30]} 10. Nf2 $146 {[%emt 0:00:30]} ({Vorgänger:} 10. Be2 b5 11. O-O Nb6 12. c3 Bd7 13. Bf2 Qc7 14. Ne3 O-O-O 15. Bh4 Be7 16. Bf6 Bxf6 17. exf6 {1-0 (40) Hebden,M (2455)-Guigonis,D (2325) France 1989}) 10... b5 {[%emt 0:05:30]} 11. g4 {[%emt 0:02:30]} Bb4 {[%emt 0:16:30]} 12. c3 {[%emt 0:00:30]} Be7 {[%emt 0:00:30]} 13. f5 {[%emt 0:01:30]} ({Better is} 13. g5 $16) 13... gxf5 {[%emt 0:01:30]} 14. gxf5 {[%emt 0:00:00]} exf5 {[%emt 0:00:30]} 15. Bh3 {[%emt 0:06:00]} Nf8 {[%emt 0:10:30]} 16. O-O {[%emt 0:03:30]} Be6 {[%emt 0:00:30]} 17. Bg2 {[%emt 0:02:30]} Qd7 {[%emt 0:00:30]} 18. Nh3 {[%emt 0:00:00]} O-O-O {[%emt 0:01:30]} 19. b4 {[%emt 0:05:00]} Ng6 {[%emt 0:01:30]} 20. a4 $11 {[%emt 0:00:30]} Kb7 {[%emt 0:00:30]} 21. Nf4 {[%emt 0:11:30]} Nxf4 {[%emt 0:08:30]} 22. Bxf4 {[%emt 0:01:30]} Rhg8 {[%emt 0:02:30]} 23. Kh1 {[%emt 0:00:30]} Ra8 {[%emt 0:03:30]} 24. Ne1 {[%emt 0:09:30]} Qd8 {[%emt 0:03:47]} 25. Nc2 {[%emt 0:03:30]} Qd7 {[%emt 0:02:45]} 26. Ne3 {[%emt 0:00:30]} Rad8 {[%emt 0:00:54]} 27. Bh3 {[%emt 0:02:30]} Ra8 {[%emt 0:01:23]} 28. Ra2 {[%emt 0:10:30]} Rgd8 {[%emt 0:02:24]} 29. Nc2 {[%emt 0:15:13]} Rg8 {[%emt 0:00:22]} 30. Qe2 {[%emt 0:00:59]} bxa4 {[%emt 0:03:30]} 31. Ne3 {[%emt 0:04:03]} Na7 {[%emt 0:01:12]} 32. Qc2 {[%emt 0:02:36]} Nb5 {[%emt 0:01:26]} 33. Bg2 {[%emt 0:04:12]} Qc6 {[%emt 0:02:48]} 34. Raa1 {[%emt 0:02:31]} a3 {[%emt 0:00:47]} 35. Nxf5 {[%emt 0:00:54]} Bxf5 {[%emt 0:01:46]} 36. Qxf5 {[%emt 0:00:03]} Qe6 {[%emt 0:00:12]} 37. Qc2 {[%emt 0:01:03]} Raf8 {[%emt 0:00:48]} 38. Bc1 {[%emt 0:00:52]} Rg6 {[%emt 0:00:41]} 39. Bxa3 {[%emt 0:00:55]} Nxa3 {[%emt 0:00:12]} 40. Rxa3 {[%emt 0:00:21]} Rfg8 {[%emt 0:30:58]} 41. Bf3 {[%emt 0:00:48]} Kb8 {[%emt 0:00:00]} 42. Raa1 {[%emt 0:12:30]} Bg5 {[%emt 0:00:00]} 43. b5 {[%emt 0:01:30]} Qh3 {[%emt 0:00:00]} 44. Bxd5 {[%emt 0:10:46]} Be3 {[%emt 0:00:00]} 45. Qe2 {[%emt 0:04:31]} a5 {[%emt 0:00:00]} 46. Rae1 {[%emt 0:00:23]} Rg3 {[%emt 0:01:16]} 47. e6 {[%emt 0:03:09]} fxe6 {[%emt 0:01:54]} 48. Bxe6 {[%emt 0:01:33]} Qxe6 {[%emt 0:00:05]} 49. Qh5 {[%emt 0:01:11]} Qe4+ {[%emt 0:00:21]} 0-1

[Event "4th Chessfestival Gredine 2018"]
[Site "Ortisei"]
[Date "2018.06.17"]
[Round "2.20"]
[White "Sarvadh Sathiaram"]
[Black "Wiesinger, Robert"]
[Result "0-1"]
[ECO "C54"]
[WhiteElo "1974"]
[BlackElo "2199"]
[Annotator "NA"]
[PlyCount "94"]
[EventDate "2018.06.16"]
[EventType "swiss"]
[EventCountry "ITA"]
[SourceTitle "playchess.com"]
[Source "ChessBase"]
[SourceQuality "1"]
[TimeControl "40/5400+30:1800+30"]

1. e4 {[%emt 0:00:30]} e5 {[%emt 0:01:00]} 2. Nf3 {[%emt 0:00:00]} Nc6 {[%emt 0:00:00]} 3. Bc4 {[%emt 0:00:00]} Bc5 {[%emt 0:00:00]} 4. c3 {[%emt 0:00:00]} Nf6 {[%emt 0:00:30]} 5. d4 {[%emt 0:00:00]} exd4 {[%emt 0:00:30]} 6. e5 {[%emt 0:00:30]} d5 {[%emt 0:01:30]} 7. Bb5 {[%emt 0:00:00]} Ne4 {[%emt 0:00:30]} 8. cxd4 {[%emt 0:00:00]} Bb6 {[%emt 0:00:30]} 9. h3 {[%emt 0:00:30]} O-O {[%emt 0:02:30]} 10. O-O {[%emt 0:00:00]} Ne7 {[%emt 0:11:30]} 11. Be3 {[%emt 0:03:00]} Ng6 {[%emt 0:07:30]} 12. Nc3 {[%emt 0:04:30]} Bf5 {[%emt 0:04:30]} 13. Bd3 {[%emt 0:09:30]} c6 {[%emt 0:05:30]} 14. Bxe4 {[%emt 0:02:30]} Bxe4 {[%emt 0:06:30]} 15. Ng5 {[%emt 0:05:30]} h6 {[%emt 0:30:30]} 16. Ngxe4 {[%emt 0:00:30]} dxe4 {[%emt 0:00:00]} 17. Nxe4 {[%emt 0:00:30]} Qd5 {[%emt 0:04:00]} 18. Nc3 {[%emt 0:08:30]} Qd7 {[%emt 0:07:36]} 19. Qd2 {[%emt 0:03:30]} Rad8 {[%emt 0:02:04]} 20. Rad1 {[%emt 0:03:30]} Ne7 {[%emt 0:01:24]} 21. g4 {[%emt 0:14:30]} Nd5 {[%emt 0:02:54]} 22. Ne4 {[%emt 0:05:30]} f5 {[%emt 0:01:23]} 23. exf6 {[%emt 0:06:30]} Nxf6 {[%emt 0:00:09]} 24. Ng3 {[%emt 0:03:30]} Qd5 {[%emt 0:05:05]} 25. Bxh6 {[%emt 0:07:30]} Ne4 {[%emt 0:02:51]} 26. Nxe4 {[%emt 0:01:30]} Qxe4 {[%emt 0:00:09]} 27. Rfe1 {[%emt 0:10:08]} Qh7 {[%emt 0:02:26]} 28. Bg5 {[%emt 0:06:38]} Rxd4 {[%emt 0:00:02]} 29. Qc3 {[%emt 0:03:19]} Rxd1 {[%emt 0:01:15]} 30. Rxd1 {[%emt 0:00:33]} Bxf2+ {[%emt 0:00:29]} 31. Kh2 {[%emt 0:00:23]} Qe4 {[%emt 0:00:25]} 32. Rd7 {[%emt 0:01:38]} Bd4 {[%emt 0:00:37]} 33. Qxd4 {[%emt 0:01:11]} Qe2+ {[%emt 0:00:18]} 34. Kg3 {[%emt 0:00:22]} Qe1+ {[%emt 0:00:40]} 35. Kg2 {[%emt 0:00:10]} Qf1+ {[%emt 0:00:33]} 36. Kh2 {[%emt 0:01:02]} Qe2+ {[%emt 0:00:24]} 37. Kg3 {[%emt 0:00:32]} Qe1+ {[%emt 0:00:03]} 38. Kg2 {[%emt 0:00:19]} Qf1+ {[%emt 0:00:31]} 39. Kh2 {[%emt 0:00:32]} Rf2+ {[%emt 0:00:38]} 40. Qxf2 {[%emt 0:00:19]} Qxf2+ {[%emt 0:30:02]} 41. Kh1 {[%emt 0:00:24]} Qxb2 {[%emt 0:00:00]} 42. Rd2 {[%emt 0:04:30]} Qe5 {[%emt 0:00:00]} 43. h4 {[%emt 0:02:30]} Qe4+ {[%emt 0:00:00]} 44. Kh2 {[%emt 0:00:30]} Qxg4 {[%emt 0:00:00]} 45. Rd8+ {[%emt 0:01:30]} Kh7 {[%emt 0:00:00]} 46. Rb8 {[%emt 0:01:30]} Qe2+ {[%emt 0:00:00]} 47. Kh1 {[%emt 0:00:30]} c5 {[%emt 0:00:00]} 0-1

[Event "4th Chessfestival Gredine 2018"]
[Site "Ortisei"]
[Date "2018.06.18"]
[Round "3.11"]
[White "Herzog, Adolf"]
[Black "Schnelzer, Reinhold"]
[Result "1-0"]
[ECO "B01"]
[WhiteElo "2344"]
[BlackElo "2182"]
[Annotator "NA"]
[PlyCount "129"]
[EventDate "2018.06.16"]
[EventType "swiss"]
[EventCountry "ITA"]
[SourceTitle "playchess.com"]
[Source "ChessBase"]
[SourceQuality "1"]
[TimeControl "40/5400+30:1800+30"]

1. e4 {[%emt 0:00:30]} d5 {[%emt 0:01:00]} 2. exd5 {[%emt 0:00:00]} Qxd5 {[%emt 0:00:00]} 3. Nc3 {[%emt 0:00:00]} Qd6 {[%emt 0:00:00]} 4. d4 {[%emt 0:00:30]} Nf6 {[%emt 0:00:30]} 5. Nf3 {[%emt 0:00:00]} c6 {[%emt 0:00:00] LiveBook: 1003 Games} 6. Ne5 {[%emt 0:00:00]} Nbd7 {[%emt 0:00:00] B01: Scandinavian Defence} 7. f4 {[%emt 0:00:30]} g6 {[%emt 0:00:30]} 8. Bc4 {[%emt 0:09:30]} e6 {[%emt 0:01:30]} 9. O-O {[%emt 0:00:30]} Bg7 {[%emt 0:03:30]} 10. a4 {[%emt 0:07:30]} O-O {[%emt 0:02:30]} 11. a5 $146 {[%emt 0:12:30]} ({Predecessor:} 11. b3 Qc7 12. Ba3 Re8 13. Qf3 Nb6 14. Bd3 {0-1 (38) Svetushkin,D (2576)-Kasparov,S (2503) Vrachati 2011}) 11... Rb8 {[%emt 0:04:30]} 12. Kh1 {[%emt 0:05:30]} b5 {[%emt 0:08:30]} (12... Qc7 $11 {keeps the balance.}) 13. axb6 {[%emt 0:04:30]} axb6 {[%emt 0:03:30]} 14. Qe2 {[%emt 0:02:30]} b5 {[%emt 0:06:30]} 15. Bb3 {[%emt 0:00:30]} b4 {[%emt 0:17:30]} 16. Nd1 {[%emt 0:07:30]} c5 {[%emt 0:02:30]} 17. f5 {[%emt 0:10:30]} gxf5 {[%emt 0:09:30]} 18. Bf4 {[%emt 0:05:30]} Nd5 {[%emt 0:02:30]} 19. Bxd5 {[%emt 0:00:30]} Qxd5 {[%emt 0:02:30]} 20. c4 {[%emt 0:09:30]} bxc3 {[%emt 0:07:30]} 21. Nxc3 {[%emt 0:00:30]} Qb7 {[%emt 0:00:30]} 22. Nxd7 {[%emt 0:00:30]} Bxd7 {[%emt 0:00:30]} 23. Bxb8 {[%emt 0:02:30] [%clk 0:13.08]} Rxb8 {[%emt 0:16:10]} 24. dxc5 {[%emt 0:07:32]} Bc6 {[%emt 0:00:30]} 25. Rfd1 {[%emt 0:00:57]} Bf6 {[%emt 0:00:30]} 26. h3 {[%emt 0:00:59]} Kh8 {[%emt 0:00:30]} 27. Rg1 {[%emt 0:00:36]} Rg8 {[%emt 0:00:30]} 28. Rad1 {[%emt 0:00:34]} Qb4 {[%emt 0:00:30]} 29. Rd2 {[%emt 0:02:22]} Be7 {[%emt 0:04:03]} 30. Qe3 {[%emt 0:01:24]} Qh4 {[%emt 0:00:08]} 31. Rd3 {[%emt 0:04:27]} Rg6 {[%emt 0:02:05]} 32. b4 {[%emt 0:01:04]} Qxb4 {[%emt 0:01:04]} 33. Qe5+ {[%emt 0:01:05]} Bf6 {[%emt 0:00:29]} 34. Qd6 {[%emt 0:01:07]} Qb7 {[%emt 0:00:52]} 35. Ne2 {[%emt 0:01:07]} Be4 {[%emt 0:01:20]} 36. Rg3 {[%emt 0:01:07]} Kg7 {[%emt 0:00:42]} 37. Nf4 {[%emt 0:01:08]} Rxg3 {[%emt 0:01:15]} 38. Nh5+ {[%emt 0:00:02]} Kh6 {[%emt 0:00:34]} 39. Nxg3 {[%emt 0:00:07]} Kg6 {[%emt 0:02:02]} 40. Nxe4 {[%emt 0:00:33]} Qxe4 {[%emt 0:30:30]} 41. Qg3+ {[%emt 0:30:23]} Kh6 {[%emt 0:00:32]} 42. Qf3 {[%emt 0:00:00]} Qc4 {[%emt 0:00:00]} 43. c6 {[%emt 0:00:00]} Be5 $2 {[%emt 0:00:00]} (43... Bg5 44. Rd1 Qc5) 44. g4 {[%emt 0:00:00]} f4 {[%emt 0:00:00]} 45. Re1 {[%emt 0:00:00]} Bc7 {[%emt 0:00:00]} 46. h4 {[%emt 0:00:00]} e5 {[%emt 0:00:00]} 47. Kg2 {[%emt 0:00:00]} Kg7 {[%emt 0:00:00]} 48. g5 {[%emt 0:00:00]} h6 $11 {[%emt 0:00:00]} 49. Kh2 {[%emt 0:00:00]} e4 {[%emt 0:00:00]} 50. gxh6+ {[%emt 0:00:00]} Kxh6 {[%emt 0:00:00]} 51. Qxe4 {[%emt 0:00:00]} Qc3 {[%emt 0:00:00]} 52. Kg1 {[%emt 0:00:00]} Qg3+ {[%emt 0:00:00]} 53. Kf1 {[%emt 0:00:05]} f3 {[%emt 0:00:00]} 54. Qe3+ {[%emt 0:02:01]} Bf4 {[%emt 0:03:50]} 55. Qg1 {[%emt 0:01:32]} Qh3+ {[%emt 0:00:37]} 56. Kf2 {[%emt 0:00:47]} Qxh4+ {[%emt 0:01:24]} 57. Kxf3 {[%emt 0:00:27]} Bh2 {[%emt 0:00:45]} 58. Qe3+ {[%emt 0:00:58]} Kg7 {[%emt 0:00:29]} 59. Qe4 {[%emt 0:00:46]} Qf6+ {[%emt 0:00:59]} 60. Kg2 {[%emt 0:00:29]} Bf4 {[%emt 0:00:26]} 61. Rf1 {[%emt 0:01:19]} Qg5+ {[%emt 0:00:57]} 62. Kf3 {[%emt 0:00:15]} Qg3+ {[%emt 0:00:39]} 63. Ke2 {[%emt 0:00:05]} Qg4+ {[%emt 0:01:01]} 64. Kd3 {[%emt 0:00:18]} Qh3+ {[%emt 0:00:48]} 65. Rf3 {[%emt 0:00:06]} 1-0